[Event "CIS Master Groups 2024"]
[Site "Vasto"]
[Date "2024.04.13"]
[Round "8.11"]
[White "Godena, Michele"]
[Black "Barp, Alberto"]
[Result "1/2-1/2"]
[ECO "C68"]
[WhiteElo "2429"]
[BlackElo "2470"]
[Annotator "RC"]
[PlyCount "37"]
[EventDate "2024.04.07"]
[EventType "team-tourn"]
[EventCountry "ITA"]
[SourceTitle "playchess.com"]
[Source "ChessBase"]
[SourceQuality "1"]
[TimeControl "40/5400+30:900+30"]

1. e4 {[%emt 0:00:03]} e5 {[%emt 0:02:35]} 2. Nf3 {[%emt 0:00:16]} Nc6 {[%emt 0:00:05]} 3. Bb5 {[%emt 0:04:43]} a6 {[%emt 0:01:28]} 4. Bxc6 {[%emt 0:00:21]} dxc6 {[%emt 0:00:06]} 5. O-O {[%emt 0:00:07]} Bg4 {[%emt 0:07:25]} 6. h3 {[%emt 0:01:40]} h5 {[%emt 0:00:06]} 7. d3 {[%emt 0:01:33]} Qf6 {[%emt 0:00:26]} 8. Be3 {[%emt 0:12:16]} Bxf3 {[%emt 0:00:15]} 9. Qxf3 {[%emt 0:00:07]} Qxf3 {[%emt 0:00:05]} 10. gxf3 {[%emt 0:00:05]} Bd6 {[%emt 0:10:33]} 11. Nd2 {[%emt 0:00:28]} Ne7 {[%emt 0:16:20]} 12. Rfb1 {[%emt 0:12:18]} a5 {[%emt 0:17:36]} 13. a4 {[%emt 0:10:42]} c5 {[%emt 0:07:59]} 14. Kf1 {[%emt 0:14:03]} f6 {[%emt 0:05:23]} 15. Ke2 {[%emt 0:08:22]} Nc6 {[%emt 0:01:28]} 16. c3 {[%emt 0:02:55]} Kf7 {[%emt 0:00:20]} 17. Nc4 {[%emt 0:18:48]} Rad8 {[%emt 0:00:09]} 18. Ra3 {[%emt 0:03:20]} b6 {[%emt 0:02:35]} 19. Raa1 {[%emt 0:01:16]} 1/2-1/2

[Event "CIS Master Groups 2024"]
[Site "Vasto"]
[Date "2024.04.13"]
[Round "8.12"]
[White "Simonetto, Andrea"]
[Black "Bellia, Fabrizio"]
[Result "0-1"]
[ECO "C55"]
[WhiteElo "2277"]
[BlackElo "2384"]
[Annotator "RC"]
[PlyCount "160"]
[EventDate "2024.04.07"]
[EventType "team-tourn"]
[EventCountry "ITA"]
[SourceTitle "playchess.com"]
[Source "ChessBase"]
[SourceQuality "1"]
[TimeControl "40/5400+30:900+30"]

1. e4 {[%emt 0:00:04]} e5 {[%emt 0:00:05]} 2. Nf3 {[%emt 0:00:04]} Nc6 {[%emt 0:00:05]} 3. Bc4 {[%emt 0:00:04]} Nf6 {[%emt 0:00:05]} 4. d3 {[%emt 0:00:07]} Be7 {[%emt 0:00:08]} 5. a4 {[%emt 0:02:16]} d6 {[%emt 0:01:39]} 6. c3 {[%emt 0:03:54]} O-O {[%emt 0:00:55]} 7. O-O {[%emt 0:00:05]} Be6 {[%emt 0:00:13]} 8. Nbd2 {[%emt 0:05:59]} Qd7 {[%emt 0:01:28]} 9. Re1 {[%emt 0:01:09]} h6 {[%emt 0:01:23]} 10. b4 {[%emt 0:11:24]} a6 {[%emt 0:03:25]} 11. Rb1 {[%emt 0:02:05]} Bxc4 {[%emt 0:07:25]} 12. Nxc4 {[%emt 0:00:08]} Rfe8 {[%emt 0:00:35]} 13. Ne3 {[%emt 0:05:34]} Bf8 {[%emt 0:01:59]} 14. b5 {[%emt 0:08:18]} axb5 {[%emt 0:06:52]} 15. axb5 {[%emt 0:00:05]} Ne7 {[%emt 0:00:28]} 16. c4 {[%emt 0:02:42]} Ng6 {[%emt 0:01:34]} 17. Bb2 {[%emt 0:04:20]} c6 {[%emt 0:02:54]} 18. bxc6 {[%emt 0:05:04]} bxc6 {[%emt 0:00:24]} 19. Ra1 {[%emt 0:00:10]} Rab8 {[%emt 0:07:26]} 20. Bc3 {[%emt 0:06:23]} d5 {[%emt 0:05:16]} 21. cxd5 {[%emt 0:03:18]} cxd5 {[%emt 0:00:12]} 22. Nxd5 {[%emt 0:01:01]} Nxd5 {[%emt 0:00:21]} 23. exd5 {[%emt 0:00:04]} Qxd5 {[%emt 0:03:00]} 24. Ra5 {[%emt 0:08:27]} Rb5 {[%emt 0:04:21]} 25. Qa4 {[%emt 0:08:22]} Rxa5 {[%emt 0:00:39]} 26. Qxa5 {[%emt 0:01:22]} Qxa5 {[%emt 0:07:17]} 27. Bxa5 {[%emt 0:00:03]} f6 {[%emt 0:01:48]} 28. g3 {[%emt 0:03:06]} Ra8 {[%emt 0:01:12]} 29. Bb6 {[%emt 0:00:24]} Ra3 {[%emt 0:06:05]} 30. Rd1 {[%emt 0:00:31]} Bb4 {[%emt 0:02:03]} 31. Kg2 {[%emt 0:00:51]} Ne7 {[%emt 0:02:19]} 32. Be3 {[%emt 0:06:02]} Nd5 {[%emt 0:00:52]} 33. Ng1 {[%emt 0:00:22]} Ra2 {[%emt 0:04:15]} 34. Kf3 {[%emt 0:01:42]} Nxe3 {[%emt 0:02:50]} 35. fxe3 {[%emt 0:00:02]} Rxh2 {[%emt 0:00:12]} 36. d4 {[%emt 0:06:50]} exd4 {[%emt 0:04:44]} 37. Rxd4 {[%emt 0:00:02]} Be1 {[%emt 0:02:39]} 38. Rd1 {[%emt 0:00:15]} Rf2+ {[%emt 0:02:15]} 39. Ke4 {[%emt 0:00:20]} f5+ {[%emt 0:00:36]} 40. Kd3 {[%emt 0:00:03]} Bb4 {[%emt 0:01:06]} 41. Ne2 {[%emt 0:17:16]} Bd6 {[%emt 0:18:18]} 42. Rg1 {[%emt 0:01:17]} Kf7 {[%emt 0:03:50]} 43. Nd4 {[%emt 0:02:10]} g6 {[%emt 0:10:21]} 44. Ne2 {[%emt 0:00:00]} Rf3 {[%emt 0:00:00]} 45. Rg2 {[%emt 0:00:00]} h5 {[%emt 0:00:00]} 46. Kd4 {[%emt 0:00:00]} Kf6 {[%emt 0:00:00]} 47. Nf4 {[%emt 0:00:00]} Be5+ {[%emt 0:00:00]} 48. Kd3 {[%emt 0:00:00]} h4 {[%emt 0:00:00]} 49. Ke2 {[%emt 0:00:43]} Rxg3 {[%emt 0:00:00]} 50. Rxg3 {[%emt 0:00:04]} hxg3 {[%emt 0:00:00]} 51. Nd3 {[%emt 0:00:05]} g5 {[%emt 0:00:11]} 52. Ne1 {[%emt 0:01:08]} g4 {[%emt 0:00:39]} 53. Ng2 {[%emt 0:00:30]} Bc7 {[%emt 0:01:09]} 54. Kd3 {[%emt 0:00:18]} Ke5 {[%emt 0:00:41]} 55. Nh4 {[%emt 0:00:57]} Bd8 {[%emt 0:00:41]} 56. Ng2 {[%emt 0:00:01]} Bg5 {[%emt 0:00:14]} 57. Ne1 {[%emt 0:00:18]} Be7 {[%emt 0:01:00]} 58. Ng2 {[%emt 0:00:01]} Bd6 {[%emt 0:00:14]} 59. Nh4 {[%emt 0:00:15]} Kd5 {[%emt 0:00:23]} 60. Ng2 {[%emt 0:01:28]} Be5 {[%emt 0:00:04]} 61. Nh4 {[%emt 0:01:13]} g2 {[%emt 0:01:02]} 62. Nxg2 {[%emt 0:00:02]} Bg3 {[%emt 0:00:03]} 63. e4+ {[%emt 0:00:48]} fxe4+ {[%emt 0:00:07]} 64. Ke2 {[%emt 0:00:01]} Ke5 {[%emt 0:00:29]} 65. Ne3 {[%emt 0:00:09]} Kf4 {[%emt 0:00:10]} 66. Ng2+ {[%emt 0:00:01]} Kg5 {[%emt 0:00:17]} 67. Ke3 {[%emt 0:00:40]} Kf5 {[%emt 0:00:07]} 68. Ke2 {[%emt 0:00:16]} Bf4 {[%emt 0:00:23]} 69. Kf1 {[%emt 0:02:12]} g3 {[%emt 0:01:02]} 70. Ne1 {[%emt 0:00:25]} Ke5 {[%emt 0:01:32]} 71. Ke2 {[%emt 0:00:14]} Bh6 {[%emt 0:00:45]} 72. Ng2 {[%emt 0:01:09]} Bg5 {[%emt 0:00:12]} 73. Ne1 {[%emt 0:00:07]} Bd8 {[%emt 0:01:33]} 74. Ng2 {[%emt 0:00:10]} Bb6 {[%emt 0:00:13]} 75. Kf1 {[%emt 0:00:57]} Bf2 {[%emt 0:00:21]} 76. Ke2 {[%emt 0:00:26]} Kf5 {[%emt 0:00:20]} 77. Kf1 {[%emt 0:00:28]} Kg4 {[%emt 0:00:14]} 78. Ke2 {[%emt 0:00:02]} Kh3 {[%emt 0:01:59]} 79. Nf4+ {[%emt 0:00:31]} Kh2 {[%emt 0:00:07]} 80. Kf1 {[%emt 0:00:15]} e3 {[%emt 0:00:21]} 0-1

[Event "CIS Master Groups 2024"]
[Site "Vasto"]
[Date "2024.04.13"]
[Round "8.13"]
[White "Ivanisevic, Ivan"]
[Black "Livaic, Leon"]
[Result "1-0"]
[ECO "D61"]
[WhiteElo "2518"]
[BlackElo "2549"]
[Annotator "TA"]
[PlyCount "55"]
[EventDate "2024.04.07"]
[EventType "team-tourn"]
[EventCountry "ITA"]
[SourceTitle "playchess.com"]
[Source "ChessBase"]
[SourceQuality "1"]
[TimeControl "40/5400+30:900+30"]

{[%evp 14,55,25,-11,0,-83,-102,-96,-99,-131,-46,-27,-42,-65,7,0,63,54,120,110,105,113,127,123,124,124,131,127,115,111,113,104,213,180,171,173,1100,1088,1080,1104,1037,1038,2641,1070]} 1. d4 {[%emt 0:00:03]} Nf6 {[%emt 0:00:10]} 2. c4 {[%emt 0:00:07]} e6 {[%emt 0:00:18]} 3. Nc3 {[%emt 0:00:06]} d5 {[%emt 0:00:10]} 4. Bg5 {[%emt 0:01:26]} Be7 {[%emt 0:00:54]} 5. e3 {[%emt 0:00:05]} Nbd7 {[%emt 0:00:50]} 6. Nf3 {[%emt 0:00:22]} O-O {[%emt 0:00:34]} 7. Qc2 {[%emt 0:02:23]} h6 {[%emt 0:01:03]} 8. Bf4 {[%emt 0:15:47]} c5 {[%emt 0:03:49]} 9. g4 {[%emt 0:02:34]} cxd4 $17 {[%emt 0:04:09]} (9... Nxg4 10. Rg1 cxd4 11. exd4 $16) 10. exd4 {[%emt 0:02:03]} dxc4 $1 {[%emt 0:00:45] Black is better.} (10... Nxg4 11. Rg1 Ndf6 12. h3 $16) 11. g5 {[%emt 0:05:44]} Nh5 {[%emt 0:03:54]} (11... Nd5 $1 $17 {[%cal Rd5f4]} 12. Nxd5 exd5 13. gxh6 g6 14. h7+ Kh8) 12. Be3 $15 {[%emt 0:01:45]} hxg5 {[%emt 0:14:53] ...g4 would now be deadly.} 13. Rg1 {[%emt 0:00:08][%cal Rf3g5]} Nb6 {[%emt 0:20:13]} (13... g4 $1 $15 14. Rxg4 b5 15. Nxb5 Bb7) 14. Nxg5 {[%emt 0:02:57]} f5 {[%emt 0:00:16]} (14... Nf6 $11) 15. O-O-O $1 $14 {[%emt 0:00:54][%cal Od4d5] Hoping for d5!} Nd5 {[%emt 0:02:27]} (15... Nf6 $14) 16. Nxd5 $1 $16 {[%emt 0:15:43]} exd5 {[%emt 0:00:40] [#]} 17. Bxc4 $1 {[%emt 0:00:05][%mdl 512]} Bxg5 {[%emt 0:10:05]} (17... dxc4 $2 {too greedy.} 18. Qxc4+ Kh8 19. Nf7+ Rxf7 20. Qxf7 $18) (17... Nf6 18. Bb3) 18. Bxg5 {[%emt 0:01:35]} Qd6 {[%emt 0:01:06]} 19. Bb3 {[%emt 0:02:15][%cal Bc4b3,Bb3c2,Bc2h7][%mdl 32] This pair of bishops is nice.} Be6 {[%emt 0:04:26]} 20. Qe2 {[%emt 0:00:47]} Nf6 {[%emt 0:02:27]} 21. Kb1 {[%emt 0:08:26] Active counter play!} f4 {[%emt 0:03:46]} 22. Bc2 {[%emt 0:02:02] Qd3 is the strong threat.} Rae8 {[%emt 0:01:33]} (22... f3 $16 23. Qxf3 Ng4) 23. Bxf6 $40 {[%emt 0:02:09][%mdl 128] White goes for the king.} Rxf6 {[%emt 0:00:18]} 24. Qh5 {[%emt 0:00:05] White threatens Qh7+ and mate.} Re7 $2 {[%emt 0:00:28]} (24... Qd7) 25. Qh7+ $18 {[%emt 0:01:20] White is clearly winning.} Kf8 {[%emt 0:00:06] [#]} 26. Qh8+ $1 {[%emt 0:00:04]} Bg8 {[%emt 0:00:05]} 27. Bh7 {[%emt 0:00:05]} Qe6 {[%emt 0:00:22] [#]} 28. Rge1 $1 {[%emt 0:00:27][%mdl 512] Weighted Error Value: White=0.13 (very precise) /Black=0.33.  Mistake:       	White=1     	Black=6      Inaccurate:     	White=1     	---        OK:         	White=6     	Black=5      Best:        	White=1     	Black=1      Strong:       	White=2     	Black=1      Brilliant:      	White=1     	---} 1-0

[Event "CIS Master Groups 2024"]
[Site "Vasto"]
[Date "2024.04.13"]
[Round "8.14"]
[White "Marchesich, Giovanni"]
[Black "Seresin, Francesco"]
[Result "1/2-1/2"]
[ECO "B10"]
[WhiteElo "2226"]
[BlackElo "2336"]
[Annotator "RC"]
[PlyCount "68"]
[EventDate "2024.04.07"]
[EventType "team-tourn"]
[EventCountry "ITA"]
[SourceTitle "playchess.com"]
[Source "ChessBase"]
[SourceQuality "1"]
[TimeControl "40/5400+30:900+30"]

1. e4 {[%emt 0:00:03]} c6 {[%emt 0:02:28]} 2. Nf3 {[%emt 0:00:20]} d5 {[%emt 0:00:10]} 3. d3 {[%emt 0:00:06]} Qc7 {[%emt 0:02:03]} 4. Nc3 {[%emt 0:01:27]} dxe4 {[%emt 0:01:11]} 5. dxe4 {[%emt 0:00:09]} e5 {[%emt 0:00:24]} 6. Bc4 {[%emt 0:02:15]} b5 {[%emt 0:02:09]} 7. Bb3 {[%emt 0:00:26]} h6 {[%emt 0:03:46]} 8. h3 {[%emt 0:03:16]} Nd7 {[%emt 0:05:32]} 9. a3 {[%emt 0:14:41]} Ngf6 {[%emt 0:02:28]} 10. Qe2 {[%emt 0:03:39]} a5 {[%emt 0:11:19]} 11. a4 {[%emt 0:10:01]} b4 {[%emt 0:02:57]} 12. Nb1 {[%emt 0:00:51]} Nc5 {[%emt 0:01:32]} 13. Nbd2 {[%emt 0:00:12]} Be7 {[%emt 0:06:04]} 14. O-O {[%emt 0:03:01]} O-O {[%emt 0:11:28]} 15. Bc4 {[%emt 0:02:32]} Ne6 {[%emt 0:44:29]} 16. Nb3 {[%emt 0:01:08]} c5 {[%emt 0:00:00]} 17. Nh4 {[%emt 0:04:04]} Bb7 {[%emt 0:00:00]} 18. f3 {[%emt 0:09:02]} Nxe4 {[%emt 0:00:00]} 19. fxe4 {[%emt 0:00:15]} Bxh4 {[%emt 0:00:00]} 20. Qg4 {[%emt 0:00:27]} Bg5 {[%emt 0:00:00]} 21. Bxe6 {[%emt 0:19:00]} Bxc1 {[%emt 0:00:00]} 22. Raxc1 {[%emt 0:03:38]} fxe6 {[%emt 0:00:00]} 23. Qxe6+ {[%emt 0:00:02]} Kh8 {[%emt 0:00:00]} 24. Qc4 {[%emt 0:02:15]} Rxf1+ {[%emt 0:00:00]} 25. Rxf1 {[%emt 0:00:04]} Qc6 {[%emt 0:00:00]} 26. Qxc5 {[%emt 0:03:15]} Qxe4 {[%emt 0:00:00]} 27. Rf8+ {[%emt 0:00:06]} Rxf8 {[%emt 0:00:00]} 28. Qxf8+ {[%emt 0:00:00]} Kh7 {[%emt 0:00:00]} 29. Qf2 {[%emt 0:00:03]} Qd5 {[%emt 0:00:00]} 30. Qd2 {[%emt 0:03:07]} Qc6 {[%emt 0:00:33]} 31. Qf2 {[%emt 0:01:37]} Qxa4 {[%emt 0:02:05]} 32. Qf5+ {[%emt 0:00:06]} Kh8 {[%emt 0:00:07]} 33. Qf8+ {[%emt 0:00:24]} Kh7 {[%emt 0:00:05]} 34. Qf5+ {[%emt 0:00:05]} Kh8 {[%emt 0:00:04]} 1/2-1/2

[Event "CIS Master Groups 2024"]
[Site "Vasto"]
[Date "2024.04.13"]
[Round "8.15"]
[White "Boraso, Alessio"]
[Black "Casadio, Niccolo`"]
[Result "1/2-1/2"]
[ECO "B90"]
[WhiteElo "2291"]
[BlackElo "2309"]
[Annotator "RC"]
[PlyCount "97"]
[EventDate "2024.04.07"]
[EventType "team-tourn"]
[EventCountry "ITA"]
[SourceTitle "playchess.com"]
[Source "ChessBase"]
[SourceQuality "1"]
[TimeControl "40/5400+30:900+30"]

1. e4 {[%emt 0:01:32]} c5 {[%emt 0:00:09]} 2. Nf3 {[%emt 0:00:32]} d6 {[%emt 0:00:06]} 3. d4 {[%emt 0:00:10]} cxd4 {[%emt 0:00:06]} 4. Nxd4 {[%emt 0:00:04]} Nf6 {[%emt 0:00:06]} 5. Nc3 {[%emt 0:00:05]} a6 {[%emt 0:00:05]} 6. Qe2 {[%emt 0:00:14]} e5 {[%emt 0:08:51]} 7. Nf5 {[%emt 0:00:26]} h6 {[%emt 0:02:45]} 8. g4 {[%emt 0:07:38]} g6 {[%emt 0:01:53]} 9. Ne3 {[%emt 0:00:53]} Nc6 {[%emt 0:00:15]} 10. h3 {[%emt 0:07:52]} Be6 {[%emt 0:06:39]} 11. Bg2 {[%emt 0:02:34]} Rc8 {[%emt 0:01:32]} 12. Ncd5 {[%emt 0:14:32]} h5 {[%emt 0:15:06]} 13. c3 {[%emt 0:17:35]} Bh6 {[%emt 0:05:34]} 14. Nc4 {[%emt 0:08:33]} Bxc1 {[%emt 0:07:49]} 15. Nxf6+ {[%emt 0:02:12]} Kf8 {[%emt 0:00:14]} 16. Nd5 {[%emt 0:04:37]} Bg5 {[%emt 0:00:24]} 17. Rd1 {[%emt 0:05:36]} b5 {[%emt 0:00:58]} 18. Nce3 {[%emt 0:00:57]} hxg4 {[%emt 0:08:06]} 19. hxg4 {[%emt 0:02:10]} Rxh1+ {[%emt 0:00:05]} 20. Bxh1 {[%emt 0:00:06]} Kg7 {[%emt 0:00:04]} 21. Bf3 {[%emt 0:05:36]} Ne7 {[%emt 0:08:16]} 22. Nxe7 {[%emt 0:03:24]} Qxe7 {[%emt 0:00:24]} 23. Nd5 {[%emt 0:00:25]} Bxd5 {[%emt 0:04:24]} 24. Rxd5 {[%emt 0:00:33]} Qc7 {[%emt 0:01:47]} 25. a3 {[%emt 0:05:18]} Qc6 {[%emt 0:01:47]} 26. Qd3 {[%emt 0:00:39]} Be7 {[%emt 0:00:02]} 27. Bd1 {[%emt 0:01:36]} Rh8 {[%emt 0:00:32]} 28. Bb3 {[%emt 0:02:37]} Rh4 {[%emt 0:03:21]} 29. Qf3 {[%emt 0:03:50]} Qd7 {[%emt 0:00:12]} 30. Rd3 {[%emt 0:01:07]} Bg5 {[%emt 0:02:12]} 31. Bd1 {[%emt 0:00:22]} Qe6 {[%emt 0:00:20]} 32. Rd5 {[%emt 0:00:40]} Rh2 {[%emt 0:01:38]} 33. Kf1 {[%emt 0:01:35]} Bf4 {[%emt 0:01:37]} 34. Bb3 {[%emt 0:00:55]} Qf6 {[%emt 0:00:24]} 35. Ke2 {[%emt 0:00:32]} Qe7 {[%emt 0:02:28]} 36. Rd1 {[%emt 0:00:28]} Qd7 {[%emt 0:04:10]} 37. Rg1 {[%emt 0:00:28]} Qa7 {[%emt 0:03:35]} 38. Rh1 {[%emt 0:00:31]} Rxh1 {[%emt 0:01:38]} 39. Qxh1 {[%emt 0:00:01]} a5 {[%emt 0:00:07]} 40. Qd1 {[%emt 0:00:48]} Qd7 {[%emt 0:03:23]} 41. Kd3 {[%emt 0:04:21]} Qc6 {[%emt 0:03:16]} 42. f3 {[%emt 0:02:06]} Qc5 {[%emt 0:01:00]} 43. Kc2 {[%emt 0:01:13]} a4 {[%emt 0:05:16]} 44. Bd5 {[%emt 0:03:09]} Qf2+ {[%emt 0:05:18]} 45. Kb1 {[%emt 0:00:13]} Qc5 {[%emt 0:04:21]} 46. Qe2 {[%emt 0:00:37]} Qg1+ {[%emt 0:02:05]} 47. Ka2 {[%emt 0:00:13]} Qc5 {[%emt 0:00:09]} 48. Bb7 {[%emt 0:01:08]} Qb6 {[%emt 0:00:14]} 49. Bd5 {[%emt 0:00:19]} 1/2-1/2

[Event "CIS Master Groups 2024"]
[Site "Vasto"]
[Date "2024.04.13"]
[Round "8.16"]
[White "Belli, Giorgio"]
[Black "Titze, Leo"]
[Result "1/2-1/2"]
[ECO "B44"]
[WhiteElo "2109"]
[BlackElo "2219"]
[Annotator "RC"]
[PlyCount "129"]
[EventDate "2024.04.07"]
[EventType "team-tourn"]
[EventCountry "ITA"]
[SourceTitle "playchess.com"]
[Source "ChessBase"]
[SourceQuality "1"]
[TimeControl "40/5400+30:900+30"]

1. e4 {[%emt 0:00:20]} c5 {[%emt 0:00:06]} 2. Nf3 {[%emt 0:00:29]} e6 {[%emt 0:00:15]} 3. d4 {[%emt 0:01:08]} cxd4 {[%emt 0:00:05]} 4. Nxd4 {[%emt 0:00:03]} Nc6 {[%emt 0:00:11]} 5. Bf4 {[%emt 0:00:05]} d6 {[%emt 0:03:55]} 6. Nxc6 {[%emt 0:00:07]} bxc6 {[%emt 0:00:05]} 7. c4 {[%emt 0:00:04]} Nf6 {[%emt 0:02:51]} 8. Nc3 {[%emt 0:04:35]} e5 {[%emt 0:00:16]} 9. Be3 {[%emt 0:00:36]} Ng4 {[%emt 0:03:34]} 10. Bc1 {[%emt 0:01:16]} Be7 {[%emt 0:05:09]} 11. Be2 {[%emt 0:00:28]} Nf6 {[%emt 0:00:24]} 12. Be3 {[%emt 0:00:40]} O-O {[%emt 0:00:11]} 13. O-O {[%emt 0:00:04]} Be6 {[%emt 0:02:33]} 14. b4 {[%emt 0:00:09]} Qc7 {[%emt 0:06:07]} 15. Rc1 {[%emt 0:04:45]} Nd7 {[%emt 0:03:50]} 16. Nd5 {[%emt 0:04:06]} Bxd5 {[%emt 0:05:02]} 17. cxd5 {[%emt 0:00:10]} c5 {[%emt 0:00:05]} 18. Bb5 {[%emt 0:04:00]} Nf6 {[%emt 0:07:35]} 19. bxc5 {[%emt 0:02:59]} dxc5 {[%emt 0:03:06]} 20. Qa4 {[%emt 0:01:07]} Rab8 {[%emt 0:02:29]} 21. f3 {[%emt 0:04:51]} Qb6 {[%emt 0:12:34]} 22. Rb1 {[%emt 0:01:20]} Nh5 {[%emt 0:00:35]} 23. Bd3 {[%emt 0:03:52]} Qc7 {[%emt 0:01:57]} 24. Qc6 {[%emt 0:02:59]} Qd6 {[%emt 0:10:37]} 25. Qxd6 {[%emt 0:14:30]} Bxd6 {[%emt 0:00:19]} 26. Rxb8 {[%emt 0:00:09]} Rxb8 {[%emt 0:00:05]} 27. Rc1 {[%emt 0:00:05]} Rc8 {[%emt 0:06:09]} 28. Ba6 {[%emt 0:03:23]} Rc7 {[%emt 0:00:11]} 29. Bb5 {[%emt 0:00:15]} Kf8 {[%emt 0:00:42]} 30. g3 {[%emt 0:00:49]} Ke7 {[%emt 0:01:51]} 31. Bc6 {[%emt 0:00:29]} g6 {[%emt 0:00:31]} 32. Rxc5 {[%emt 0:03:22]} Bxc5 {[%emt 0:05:24]} 33. Bxc5+ {[%emt 0:00:04]} Kd8 {[%emt 0:00:07]} 34. Bd6 {[%emt 0:00:29]} f6 {[%emt 0:00:17]} 35. f4 {[%emt 0:02:41]} exf4 {[%emt 0:01:23]} 36. gxf4 {[%emt 0:00:15]} Re7 {[%emt 0:01:14]} 37. e5 {[%emt 0:09:44]} Nxf4 {[%emt 0:04:04]} 38. exf6 {[%emt 0:00:45]} Re1+ {[%emt 0:00:34]} 39. Kf2 {[%emt 0:00:04]} Nd3+ {[%emt 0:00:03]} 40. Kg2 {[%emt 0:00:06]} Ne5 {[%emt 0:09:00]} 41. Be7+ {[%emt 0:15:24]} Kc8 {[%emt 0:15:43]} 42. Be8 {[%emt 0:00:08]} Re4 {[%emt 0:01:50]} 43. d6 {[%emt 0:01:26]} Rf4 {[%emt 0:00:17]} 44. Kg3 {[%emt 0:10:08]} Rf5 {[%emt 0:01:07]} 45. h4 {[%emt 0:00:59]} h5 {[%emt 0:02:10]} 46. d7+ {[%emt 0:02:07]} Nxd7 {[%emt 0:00:07]} 47. Bxg6 {[%emt 0:00:05]} Rf1 {[%emt 0:00:00]} 48. Bd3 {[%emt 0:00:00]} Rxf6 {[%emt 0:00:00]} 49. Bxf6 {[%emt 0:00:00]} Nxf6 {[%emt 0:00:00]} 50. Kf4 {[%emt 0:00:00]} Kd8 {[%emt 0:00:00]} 51. Bg6 {[%emt 0:00:00]} Ke7 {[%emt 0:00:00]} 52. Ke5 {[%emt 0:00:00]} Ng4+ {[%emt 0:00:00]} 53. Kd4 {[%emt 0:00:00]} Nf6 {[%emt 0:00:00]} 54. Ke5 {[%emt 0:00:00]} Ng4+ {[%emt 0:00:00]} 55. Kf4 {[%emt 0:00:00]} Nf6 {[%emt 0:00:00]} 56. Kg5 {[%emt 0:00:00]} Nd5 {[%emt 0:01:55]} 57. Bc2 {[%emt 0:00:00]} Kf8 {[%emt 0:00:56]} 58. a3 {[%emt 0:00:00]} Kg7 {[%emt 0:01:11]} 59. Kxh5 {[%emt 0:00:55]} Nc7 {[%emt 0:00:33]} 60. Bd3 {[%emt 0:00:41]} Ne6 {[%emt 0:00:22]} 61. Bc4 {[%emt 0:00:13]} Nd4 {[%emt 0:00:22]} 62. Bd3 {[%emt 0:02:17]} Nf3 {[%emt 0:00:07]} 63. Be4 {[%emt 0:02:12]} Nd4 {[%emt 0:00:13]} 64. a4 {[%emt 0:00:43]} a5 {[%emt 0:00:20]} 65. Bd5 {[%emt 0:00:39]} 1/2-1/2

[Event "CIS Master Groups 2024"]
[Site "Vasto"]
[Date "2024.04.13"]
[Round "8.17"]
[White "Glek, Igor"]
[Black "Chatalbashev, Boris"]
[Result "1/2-1/2"]
[ECO "B07"]
[WhiteElo "2409"]
[BlackElo "2451"]
[Annotator "RC"]
[PlyCount "144"]
[EventDate "2024.04.07"]
[EventType "team-tourn"]
[EventCountry "ITA"]
[SourceTitle "playchess.com"]
[Source "ChessBase"]
[SourceQuality "1"]
[TimeControl "40/5400+30:900+30"]

1. e4 {[%emt 0:01:07]} g6 {[%emt 0:02:17]} 2. d4 {[%emt 0:00:44]} Bg7 {[%emt 0:00:05]} 3. Nf3 {[%emt 0:00:37]} d6 {[%emt 0:00:08]} 4. c3 {[%emt 0:00:44]} Nf6 {[%emt 0:00:07]} 5. Bd3 {[%emt 0:00:04]} O-O {[%emt 0:00:06]} 6. O-O {[%emt 0:00:13]} Nbd7 {[%emt 0:00:14]} 7. Re1 {[%emt 0:00:25]} e5 {[%emt 0:00:07]} 8. h3 {[%emt 0:00:17]} b6 {[%emt 0:00:10]} 9. Nbd2 {[%emt 0:03:39]} Bb7 {[%emt 0:00:07]} 10. Nf1 {[%emt 0:01:53]} Re8 {[%emt 0:00:07]} 11. Ng3 {[%emt 0:00:04]} d5 {[%emt 0:03:15]} 12. Bg5 {[%emt 0:40:19]} h6 {[%emt 0:03:07]} 13. Bxf6 {[%emt 0:01:12]} Qxf6 {[%emt 0:02:30]} 14. Qa4 {[%emt 0:01:58]} Bc6 {[%emt 0:10:21]} 15. Bb5 {[%emt 0:03:05]} Bxb5 {[%emt 0:01:33]} 16. Qxb5 {[%emt 0:00:04]} c6 {[%emt 0:00:08]} 17. Qa4 {[%emt 0:03:18]} exd4 {[%emt 0:02:49]} 18. cxd4 {[%emt 0:01:16]} Qd6 {[%emt 0:15:47]} 19. Rad1 {[%emt 0:15:40]} a5 {[%emt 0:02:21]} 20. e5 {[%emt 0:07:06]} Qe6 {[%emt 0:00:28]} 21. Ne2 {[%emt 0:00:44]} Rac8 {[%emt 0:04:27]} 22. Rc1 {[%emt 0:04:19]} g5 {[%emt 0:06:52]} 23. Ng3 {[%emt 0:02:33]} c5 {[%emt 0:00:19]} 24. Qb5 {[%emt 0:02:16]} c4 {[%emt 0:02:03]} 25. Nf1 {[%emt 0:03:43]} Red8 {[%emt 0:04:56]} 26. Ne3 {[%emt 0:00:06]} Nf8 {[%emt 0:02:50]} 27. b3 {[%emt 0:00:15]} c3 {[%emt 0:00:19]} 28. Qd3 {[%emt 0:00:42]} Ng6 {[%emt 0:04:30]} 29. Rxc3 {[%emt 0:00:25]} Rxc3 {[%emt 0:00:16]} 30. Qxc3 {[%emt 0:00:02]} Nf4 {[%emt 0:00:08]} 31. Qc2 {[%emt 0:00:51]} Rc8 {[%emt 0:04:26]} 32. Qf5 {[%emt 0:02:56]} Bf8 {[%emt 0:00:14]} 33. g3 {[%emt 0:00:30]} Nxh3+ {[%emt 0:02:38]} 34. Kg2 {[%emt 0:00:18]} Qxf5 {[%emt 0:00:09]} 35. Nxf5 {[%emt 0:00:03]} g4 {[%emt 0:00:08]} 36. Ne3 {[%emt 0:01:28]} h5 {[%emt 0:11:46]} 37. Ng1 {[%emt 0:00:32]} Bb4 {[%emt 0:01:20]} 38. Rd1 {[%emt 0:00:22]} Nxg1 {[%emt 0:00:34]} 39. Kxg1 {[%emt 0:00:20]} Rd8 {[%emt 0:00:20]} 40. Kf1 {[%emt 0:01:20]} f6 {[%emt 0:06:48]} 41. exf6 {[%emt 0:17:51]} Kf7 {[%emt 0:18:16]} 42. Rc1 {[%emt 0:00:00]} Bd2 {[%emt 0:00:00]} 43. Rc6 {[%emt 0:00:00]} Bxe3 {[%emt 0:00:00]} 44. fxe3 {[%emt 0:00:00]} a4 {[%emt 0:00:00]} 45. Rxb6 {[%emt 0:00:00]} axb3 {[%emt 0:00:00]} 46. axb3 {[%emt 0:00:00]} Ra8 {[%emt 0:00:00]} 47. Rd6 {[%emt 0:00:00]} Ra5 {[%emt 0:00:00]} 48. Ke2 {[%emt 0:00:00]} Rb5 {[%emt 0:00:00]} 49. b4 {[%emt 0:00:00]} Kg6 {[%emt 0:00:00]} 50. Kd3 {[%emt 0:00:22]} Rxb4 {[%emt 0:00:00]} 51. Rxd5 {[%emt 0:00:04]} Rb2 {[%emt 0:00:29]} 52. f7 {[%emt 0:02:56]} Rf2 {[%emt 0:00:20]} 53. Rd7 {[%emt 0:00:17]} h4 {[%emt 0:03:37]} 54. Rd6+ {[%emt 0:00:20]} Kxf7 {[%emt 0:00:16]} 55. gxh4 {[%emt 0:00:04]} Rh2 {[%emt 0:01:16]} 56. Ke4 {[%emt 0:01:43]} g3 {[%emt 0:00:06]} 57. Kf3 {[%emt 0:01:57]} g2 {[%emt 0:00:05]} 58. Kf2 {[%emt 0:00:02]} Rh3 {[%emt 0:00:08]} 59. Kxg2 {[%emt 0:00:18]} Rxe3 {[%emt 0:00:06]} 60. h5 {[%emt 0:00:16]} Ke7 {[%emt 0:01:52]} 61. Kf2 {[%emt 0:00:44]} Rd3 {[%emt 0:01:58]} 62. Ke2 {[%emt 0:00:10]} Rh3 {[%emt 0:00:06]} 63. Rh6 {[%emt 0:01:31]} Kf7 {[%emt 0:01:26]} 64. d5 {[%emt 0:00:02]} Kg7 {[%emt 0:01:00]} 65. d6 {[%emt 0:01:00]} Rh2+ {[%emt 0:01:30]} 66. Ke3 {[%emt 0:00:05]} Rh1 {[%emt 0:01:17]} 67. Rg6+ {[%emt 0:00:42]} Kf7 {[%emt 0:00:02]} 68. Rg5 {[%emt 0:00:58]} Rd1 {[%emt 0:01:04]} 69. Rg6 {[%emt 0:00:21]} Rh1 {[%emt 0:00:04]} 70. d7 {[%emt 0:00:39]} Rd1 {[%emt 0:00:21]} 71. Rh6 {[%emt 0:00:24]} Kg7 {[%emt 0:00:11]} 72. Rg6+ {[%emt 0:00:05]} Kh7 {[%emt 0:00:34]} 1/2-1/2